bitfinex/quotes_BTCUSD_20250910
["timestamp","ask_amount","ask_price","bid_price","bid_amount"]
[1757482072266,0.67745288,111780.0,111770.0,0.29591544]
[1757482075284,0.67745288,111780.0,111770.0,0.18035889]
[1757482075545,0.67745288,111780.0,111770.0,0.29591544]
[1757482076827,0.67745288,111780.0,111770.0,0.29449544]
[1757482077594,0.67745288,111780.0,111770.0,0.17893889]
[1757482080391,0.67745288,111780.0,111770.0,0.29449544]
[1757482080598,0.67745288,111780.0,111770.0,0.29591544]
[1757482081024,0.003,111780.0,111770.0,0.47974742]
[1757482081173,0.003,111780.0,111770.0,0.505764]
[1757482081587,0.003,111780.0,111770.0,0.504874]
[1757482082192,0.002,111780.0,111770.0,0.504874]
[1757482082398,0.30372,111790.0,111780.0,0.17892288]
[1757482082599,0.30573,111790.0,111780.0,0.29447943]
[1757482084352,0.48463687,111790.0,111780.0,0.29447943]
[1757482084876,0.30569,111790.0,111780.0,0.29589943]
[1757482085080,0.30368,111790.0,111780.0,0.29589943]
[1757482085284,0.30368,111790.0,111780.0,0.33119368]
[1757482085612,0.30368,111790.0,111780.0,0.29589943]
[1757482085787,0.30569,111790.0,111780.0,0.29589943]
[1757482086567,0.15533,111790.0,111780.0,0.29589943]
[1757482086795,0.30569,111790.0,111780.0,0.29589943]
[1757482088818,0.15533,111790.0,111780.0,0.29589943]
[1757482089024,0.30569,111790.0,111780.0,0.29589943]
[1757482089588,0.30368,111790.0,111780.0,0.37112352]
[1757482089849,0.15368,111790.0,111780.0,0.37212352]
[1757482090444,0.00332,111790.0,111780.0,0.37212352]
[1757482090948,0.0002,111790.0,111780.0,0.57959606]
[1757482095122,0.0002,111790.0,111780.0,0.61435951]
[1757482095331,0.00316,111790.0,111780.0,0.61435951]
[1757482096387,0.00316,111790.0,111780.0,0.67191657]
[1757482096603,0.00316,111790.0,111780.0,0.84503018]
[1757482097435,0.00523,111790.0,111780.0,0.52159657]
[1757482097641,0.00523,111790.0,111780.0,0.67191657]
[1757482099079,0.00523,111790.0,111780.0,0.84503018]
[1757482099652,0.0002,111790.0,111780.0,0.87015676]
[1757482101293,0.0002,111790.0,111780.0,0.87104676]
[1757482103993,0.0002,111790.0,111780.0,0.93526122]
[1757482104229,0.0002,111790.0,111780.0,1.20476122]
[1757482104904,0.0002,111790.0,111780.0,1.12311995]
[1757482105213,0.00316,111790.0,111780.0,1.27254995]
[1757482105611,0.0002,111790.0,111780.0,1.27254995]
[1757482106455,0.0002,111790.0,111780.0,1.12222995]
[1757482106658,0.0002,111790.0,111780.0,1.27254995]
[1757482108445,0.0002,111790.0,111780.0,1.00304995]
[1757482110113,0.0002,111790.0,111780.0,1.27343995]
[1757482113808,0.0002,111790.0,111780.0,1.67343995]
[1757482114249,0.0002,111790.0,111780.0,1.52311995]
[1757482114403,0.0002,111790.0,111780.0,1.67250995]
[1757482115157,0.0002,111790.0,111780.0,1.49939634]
[1757482115395,0.0002,111790.0,111780.0,1.09939634]
[1757482116013,0.0002,111790.0,111780.0,0.82989634]
[1757482116339,0.0002,111790.0,111780.0,1.00300995]
[1757482116602,0.0002,111790.0,111780.0,1.00389995]
[1757482117795,0.0002,111790.0,111780.0,0.83078634]
[1757482118806,0.0002,111790.0,111780.0,0.82989634]
[1757482119336,0.0002,111790.0,111780.0,1.22989634]
[1757482119750,0.0002,111790.0,111780.0,1.05678273]
[1757482119982,0.0002,111790.0,111780.0,1.22989634]
[1757482120783,0.17834361,111790.0,111780.0,0.50508273]
[1757482121045,0.0002,111790.0,111780.0,0.65678273]
[1757482121165,0.0002,111790.0,111780.0,1.00300995]
[1757482121530,0.0002,111790.0,111780.0,1.00389995]
[1757482121874,0.0002,111790.0,111780.0,1.27339995]
[1757482123161,0.0002,111790.0,111780.0,1.09939634]
[1757482124291,0.0002,111790.0,111780.0,1.27250995]
[1757482125308,0.0002,111790.0,111780.0,1.26206827]
[1757482125490,0.0002,111790.0,111780.0,1.60829549]
[1757482126499,0.0002,111790.0,111780.0,1.43518188]
[1757482126707,0.0002,111790.0,111780.0,1.28490188]
[1757482126921,0.0002,111790.0,111780.0,1.49937183]
[1757482127145,0.0002,111790.0,111780.0,1.67248544]
[1757482127349,0.0002,111790.0,111780.0,1.67337544]
[1757482127564,0.0002,111790.0,111780.0,1.27337544]
[1757482130364,0.0002,111790.0,111780.0,1.20914549]
[1757482131796,0.0002,111790.0,111780.0,1.60914549]
[1757482132225,0.0002,111790.0,111780.0,1.60825549]
[1757482133087,0.0002,111790.0,111780.0,1.43514188]
[1757482133571,0.0002,111790.0,111780.0,1.60825549]
[1757482134515,0.0002,111790.0,111780.0,1.60914549]
[1757482134693,0.0002,111790.0,111780.0,1.68861825]
[1757482135777,0.0002,111790.0,111780.0,0.94239103]
[1757482135977,0.0002,111790.0,111780.0,1.28861825]
[1757482136228,0.0002,111790.0,111780.0,1.20825549]
[1757482136657,0.0002,111790.0,111780.0,1.20914549]
[1757482136884,0.0002,111790.0,111780.0,1.28950825]
[1757482139894,0.0002,111790.0,111780.0,1.68950825]
[1757482140694,0.0002,111790.0,111780.0,1.86262186]
[1757482140880,0.0002,111790.0,111780.0,1.68950825]
[1757482141067,0.0002,111790.0,111780.0,1.60914549]
[1757482141272,0.0002,111790.0,111780.0,1.71536191]
[1757482141474,0.0002,111790.0,111780.0,1.71436191]
[1757482141713,0.0002,111790.0,111780.0,1.71536191]
[1757482142387,0.0002,111790.0,111780.0,1.71936191]
[1757482143516,0.0002,111790.0,111780.0,1.37213469]
[1757482143732,0.0002,111790.0,111780.0,1.71836191]
[1757482143909,0.0002,111790.0,111780.0,1.72036191]
[1757482144051,0.0002,111790.0,111780.0,1.71636191]
[1757482144466,0.0002,111790.0,111780.0,1.71936191]
[1757482145065,0.0002,111790.0,111780.0,1.31843191]
[1757482145352,0.0002,111790.0,111780.0,1.31543191]
[1757482146166,0.0002,111790.0,111780.0,1.31843191]
[1757482146892,0.0002,111790.0,111780.0,0.97220469]
[1757482147303,0.0002,111790.0,111780.0,1.31843191]
[1757482147897,0.0002,111790.0,111780.0,1.31932191]
[1757482148345,0.0002,111790.0,111780.0,1.31843191]
[1757482149174,0.0002,111790.0,111780.0,1.71843191]
[1757482150921,0.0002,111790.0,111780.0,1.71932191]
[1757482152541,0.0002,111790.0,111780.0,1.71843191]
[1757482155519,0.0002,111790.0,111780.0,1.56823191]
[1757482155721,0.0002,111790.0,111780.0,1.71843191]
[1757482156347,0.0002,111790.0,111780.0,1.60296365]
[1757482156546,0.00554,111790.0,111780.0,0.82200469]
[1757482156753,0.02919,111790.0,111780.0,0.79545811]
[1757482156915,0.02919,111790.0,111780.0,0.9026822]
[1757482156916,0.14456948,111790.0,111780.0,0.9026822]
[1757482157123,0.02919,111790.0,111780.0,0.92780878]
[1757482158076,0.02919,111790.0,111780.0,0.92580878]
[1757482158642,0.02919,111790.0,111780.0,0.92480878]
[1757482159068,0.02919,111790.0,111780.0,0.92680878]
[1757482163118,0.02919,111790.0,111780.0,0.41330347]
[1757482163119,0.47347635,111790.0,111780.0,0.41330347]
[1757482163316,0.47347635,111790.0,111780.0,0.42499887]
[1757482163597,0.29456948,111790.0,111780.0,0.42499887]
[1757482168002,0.0002,111790.0,111780.0,0.56692493]
[1757482168405,0.0034,111790.0,111780.0,0.56692493]
[1757482168610,0.00554,111790.0,111780.0,0.56692493]
[1757482168912,0.00554,111790.0,111780.0,0.65481536]
[1757482171665,0.0034,111790.0,111780.0,0.65481536]
[1757482174528,0.0002,111790.0,111780.0,0.65481536]
[1757482176322,0.0034,111790.0,111780.0,0.65481536]
[1757482176477,0.00554,111790.0,111780.0,0.65481536]
[1757482177446,0.00554,111790.0,111780.0,0.53801588]
[1757482178591,0.00554,111790.0,111780.0,0.65339536]
[1757482179240,0.00554,111790.0,111780.0,0.65481536]
[1757482184234,0.00554,111790.0,111780.0,0.71905587]
[1757482184439,0.0002,111790.0,111780.0,0.78516611]
[1757482184615,0.00522,111790.0,111780.0,0.78516611]
[1757482185035,0.11924949,111800.0,111790.0,0.17890687]
[1757482185373,0.12131949,111800.0,111790.0,0.17890687]
[1757482186181,0.12131949,111800.0,111790.0,0.17990687]
[1757482186532,0.12131949,111800.0,111790.0,0.22022668]
[1757482186938,0.12426949,111800.0,111790.0,0.22022668]
[1757482189074,0.00889001,111800.0,111790.0,0.22022668]
[1757482189294,0.12426949,111800.0,111790.0,0.22022668]
[1757482193482,0.00889001,111800.0,111790.0,0.22022668]
[1757482193794,0.12426949,111800.0,111790.0,0.22022668]
[1757482194971,0.12426949,111800.0,111790.0,0.18090687]
[1757482196286,0.30316036,111800.0,111790.0,0.18090687]
[1757482196489,0.12426949,111800.0,111790.0,0.18090687]
[1757482196630,0.30316036,111800.0,111790.0,0.18090687]
[1757482196849,0.44892793,111800.0,111790.0,0.002]
[1757482197193,0.44892793,111800.0,111790.0,0.18090687]
[1757482197928,0.41853984,111800.0,111790.0,0.18090687]
[1757482200350,0.41853984,111800.0,111790.0,0.002]
[1757482201431,0.41853984,111800.0,111790.0,0.18090687]
[1757482204006,0.23577896,111800.0,111790.0,0.18295687]
[1757482204240,0.23577896,111800.0,111790.0,0.23123144]
[1757482204241,0.26545948,111800.0,111790.0,0.23123144]
[1757482204496,0.15008,111800.0,111790.0,0.23123144]
[1757482204730,0.96771428,111810.0,111800.0,0.17889087]
[1757482204953,1.08516376,111810.0,111800.0,0.17889087]
[1757482205190,1.23524376,111810.0,111800.0,0.18094087]
[1757482205423,1.23524376,111810.0,111800.0,0.17889087]
[1757482206093,1.23529005,111810.0,111800.0,0.17889087]
[1757482206511,1.23529005,111810.0,111790.0,0.22718144]
[1757482206740,1.23529005,111810.0,111790.0,0.18200687]
[1757482206950,0.11537948,111800.0,111790.0,0.18200687]
[1757482207175,0.11744948,111800.0,111790.0,0.18405687]
[1757482207457,0.11744948,111800.0,111790.0,0.18095687]
[1757482208300,1.14208057,111810.0,111790.0,0.18505687]
[1757482208521,1.11784057,111810.0,111800.0,0.17889087]
[1757482208739,1.23529005,111810.0,111800.0,0.17889087]
[1757482209696,0.90131518,111810.0,111800.0,0.21713064]
[1757482209952,1.23234005,111810.0,111800.0,0.18094087]
[1757482210129,1.25953005,111810.0,111790.0,0.18300687]
[1757482210356,0.11537948,111800.0,111790.0,0.18300687]
[1757482210548,0.11537948,111800.0,111790.0,0.18505687]
[1757482210882,0.11537948,111800.0,111790.0,0.27124279]
[1757482211314,0.11537948,111800.0,111790.0,0.27024279]
[1757482211726,0.83646518,111810.0,111800.0,0.17889087]
[1757482211928,0.20124629,111810.0,111800.0,0.30171648]
[1757482212147,0.20024629,111810.0,111800.0,0.39139634]
[1757482212363,0.20024629,111810.0,111800.0,0.43242066]
[1757482212568,0.20024629,111810.0,111800.0,0.46708118]
[1757482212772,0.20024629,111810.0,111800.0,0.58246066]
[1757482213018,0.20024629,111810.0,111800.0,0.46708118]
[1757482213394,0.20124629,111810.0,111800.0,0.46708118]
[1757482215157,0.32185577,111810.0,111800.0,0.31183118]
[1757482215402,0.49659577,111810.0,111800.0,0.27080686]
[1757482215625,0.67547064,111810.0,111800.0,0.17889087]
[1757482215884,0.70585873,111810.0,111800.0,0.17889087]
[1757482216552,0.76359533,111810.0,111800.0,0.17889087]
[1757482217151,0.73320724,111810.0,111800.0,0.17889087]
[1757482217283,0.55433237,111810.0,111800.0,0.17889087]
[1757482217696,0.52959237,111810.0,111800.0,0.25867464]
[1757482218991,0.70846724,111810.0,111800.0,0.17989087]
[1757482219314,0.73320724,111810.0,111800.0,0.17989087]
[1757482219897,0.73320724,111810.0,111800.0,0.001]
[1757482220504,0.73320724,111810.0,111800.0,0.17989087]
[1757482221506,0.56009116,111810.0,111800.0,0.17989087]
[1757482221711,0.73320724,111810.0,111800.0,0.17989087]
[1757482223582,0.50337629,111810.0,111800.0,0.23282464]
[1757482223798,0.67649237,111810.0,111800.0,0.23282464]
[1757482224189,0.67649237,111810.0,111800.0,0.18194087]
[1757482226030,0.67649237,111810.0,111800.0,0.18094087]
[1757482226619,0.67649237,111810.0,111800.0,0.18410087]
[1757482227023,0.67649237,111810.0,111800.0,0.18094087]
[1757482228929,0.50337629,111810.0,111800.0,0.18094087]
[1757482229489,0.67649237,111810.0,111800.0,0.18094087]
[1757482232484,0.52649237,111810.0,111800.0,0.18094087]
[1757482232698,0.67649237,111810.0,111800.0,0.18094087]
[1757482232955,0.67649237,111810.0,111800.0,0.24955725]
[1757482233704,0.50647629,111810.0,111800.0,0.24955725]
[1757482233884,0.67959237,111810.0,111800.0,0.24955725]
[1757482237755,0.67959237,111810.0,111800.0,0.18094087]
[1757482239011,0.50647629,111810.0,111800.0,0.18094087]
[1757482239217,0.67959237,111810.0,111800.0,0.18094087]
[1757482240253,0.50337629,111810.0,111800.0,0.18094087]
[1757482240457,0.67649237,111810.0,111800.0,0.18410087]
[1757482240869,0.67649237,111810.0,111800.0,0.18094087]
[1757482242233,0.67971237,111810.0,111800.0,0.2559613]
[1757482243791,0.50659629,111810.0,111800.0,0.2559613]
[1757482243991,0.67971237,111810.0,111800.0,0.2559613]
[1757482244194,0.67971237,111810.0,111800.0,0.18094087]
[1757482246317,0.85858724,111810.0,111800.0,0.17889087]
[1757482246541,0.88125724,111810.0,111800.0,0.17889087]
[1757482246716,0.88025724,111810.0,111800.0,0.17889087]
[1757482247536,0.88025724,111810.0,111800.0,0.17989087]
[1757482250553,0.88025724,111810.0,111800.0,0.001]
[1757482251441,0.88025724,111810.0,111800.0,0.17989087]
[1757482251638,0.88025724,111810.0,111800.0,0.001]
[1757482252765,1.39337332,111810.0,111800.0,0.001]
[1757482252971,1.42281927,111810.0,111800.0,0.001]
[1757482253599,0.32890687,111790.0,111780.0,0.45736675]
[1757482253805,0.65728295,111790.0,111780.0,0.54928274]
[1757482254751,0.65728295,111790.0,111780.0,0.36141599]
[1757482254958,0.67995295,111790.0,111780.0,0.36141599]
[1757482255354,0.67995295,111790.0,111780.0,0.09191599]
[1757482256377,0.68908401,111790.0,111780.0,0.09191599]
[1757482256648,0.17892288,111780.0,111770.0,0.06424051]
[1757482256826,0.17893889,111770.0,111760.0,0.25214315]
[1757482257024,0.17893889,111770.0,111760.0,0.09191599]
[1757482257025,0.50731497,111770.0,111760.0,0.09191599]
[1757482257248,0.50731497,111770.0,111760.0,0.11704257]
[1757482257608,0.50731497,111770.0,111760.0,0.29599747]
[1757482257816,0.50731497,111770.0,111760.0,0.38665982]
[1757482258023,0.50731497,111770.0,111760.0,0.38670612]
[1757482258424,0.32515608,111770.0,111760.0,0.29819377]
[1757482258648,0.32307608,111770.0,111760.0,0.30115377]
[1757482259218,0.14996,111770.0,111760.0,0.30115377]
[1757482259461,0.32307608,111770.0,111760.0,0.30115377]
[1757482260236,0.14996,111770.0,111760.0,0.30115377]
[1757482260479,0.17892288,111780.0,111770.0,0.17893889]
[1757482260663,0.32888288,111780.0,111770.0,0.18628562]
[1757482260878,0.32307608,111780.0,111770.0,0.18404889]
[1757482261044,0.50199896,111780.0,111770.0,0.18404889]
[1757482262201,0.35203896,111780.0,111770.0,0.18404889]
[1757482262408,0.50199896,111780.0,111770.0,0.18404889]
[1757482262542,0.50199896,111780.0,111770.0,0.21934314]
[1757482263680,0.14996,111780.0,111770.0,0.39245922]
[1757482264094,0.32888288,111780.0,111770.0,0.21934314]
[1757482264509,0.50199896,111780.0,111770.0,0.21934314]
[1757482264892,0.50407896,111780.0,111770.0,0.21934314]
[1757482266543,0.35411896,111780.0,111770.0,0.21934314]
[1757482266783,0.50407896,111780.0,111770.0,0.21934314]
[1757482267132,0.50729896,111780.0,111770.0,0.21638314]
[1757482267337,0.50407896,111780.0,111770.0,0.21638314]
[1757482267557,0.17311608,111780.0,111770.0,0.21934314]
[1757482267765,0.14996,111780.0,111770.0,0.39245922]
[1757482268448,0.92968829,111790.0,111770.0,0.39245922]
[1757482268655,0.93290829,111790.0,111770.0,0.39245922]
[1757482270756,0.93290829,111790.0,111770.0,0.39345922]
[1757482271362,0.52311608,111790.0,111780.0,0.18115941]
[1757482271575,0.67307608,111790.0,111780.0,0.25265687]
[1757482271837,0.85400295,111790.0,111780.0,0.25042034]
[1757482272043,0.85400295,111790.0,111780.0,0.24743034]
[1757482272044,0.50198,111790.0,111780.0,0.24743034]
[1757482272257,0.35,111790.0,111780.0,0.42353642]
[1757482272484,0.40682184,111810.0,111800.0,0.17889087]
[1757482272712,0.40682184,111810.0,111800.0,0.18104087]
[1757482272713,0.67802184,111810.0,111800.0,0.18104087]
[1757482272964,0.67802184,111810.0,111800.0,0.18403087]
[1757482272965,0.66109469,111810.0,111800.0,0.18403087]
[1757482273175,1.00109469,111810.0,111800.0,0.18403087]
[1757482273384,1.00311469,111810.0,111800.0,0.18403087]
[1757482273794,1.00316098,111810.0,111800.0,0.18104087]
[1757482274257,1.00636098,111810.0,111800.0,0.17889087]
[1757482274461,1.03069098,111810.0,111790.0,0.17890687]
[1757482274668,1.03069098,111810.0,111790.0,0.33167564]
[1757482274887,1.03069098,111810.0,111790.0,0.33466564]
[1757482275102,1.03069098,111810.0,111800.0,0.17889087]
[1757482275310,1.00636098,111810.0,111800.0,0.17889087]
[1757482276621,1.00636098,111810.0,111790.0,0.33466564]
[1757482276821,1.03069098,111810.0,111790.0,0.33466564]
[1757482277028,0.17311608,111800.0,111790.0,0.35979222]
[1757482277239,0.17513608,111800.0,111790.0,0.36194222]
[1757482277890,0.17513608,111800.0,111790.0,0.35895222]
[1757482278392,0.35402695,111800.0,111790.0,0.35895222]
[1757482278609,0.32384772,111800.0,111790.0,0.35680222]
[1757482278831,0.43925457,111800.0,111790.0,0.06085278]
[1757482279082,0.40844087,111800.0,111780.0,0.33778902]
[1757482279329,0.26532685,111790.0,111780.0,0.42970501]
[1757482279525,0.26532685,111790.0,111780.0,0.28193501]
[1757482279807,0.15194,111790.0,111780.0,0.28193501]
[1757482280023,0.62378372,111790.0,111770.0,0.21401241]
[1757482280243,0.11540685,111780.0,111770.0,0.43072182]
[1757482280485,0.11860685,111780.0,111770.0,0.43072182]
[1757482280702,0.00522,111780.0,111770.0,0.43072182]
[1757482280914,0.00522,111780.0,111770.0,0.43287182]
[1757482281131,0.00202,111780.0,111770.0,0.43287182]
[1757482281343,0.00202,111780.0,111770.0,0.513213]
[1757482282558,0.47184372,111790.0,111780.0,0.17892288]
[1757482282808,0.59945372,111790.0,111780.0,0.18107288]
[1757482282982,0.30194,111790.0,111780.0,0.18406288]
[1757482283220,0.30194,111790.0,111780.0,0.18107288]
[1757482283436,0.30194,111790.0,111780.0,0.22794194]
[1757482283659,0.48404687,111790.0,111780.0,0.22794194]
[1757482284089,0.30194,111790.0,111780.0,0.22794194]
[1757482286133,0.41734685,111790.0,111780.0,0.22794194]
[1757482286959,0.26742685,111790.0,111780.0,0.23093194]
[1757482287194,0.29992,111790.0,111780.0,0.23093194]
[1757482288033,0.30194,111790.0,111780.0,0.23093194]
[1757482288256,0.30194,111790.0,111780.0,0.22794194]
[1757482289092,0.41734685,111790.0,111780.0,0.23093194]
[1757482289918,0.15,111790.0,111780.0,0.32284793]
[1757482290142,0.15,111790.0,111780.0,0.43825478]
[1757482290351,0.15,111790.0,111780.0,0.32284793]
[1757482291193,0.15,111790.0,111780.0,0.46338136]
[1757482292520,0.15202,111790.0,111780.0,0.34498451]
[1757482292859,0.15,111790.0,111780.0,0.34797451]
[1757482293073,0.15,111790.0,111780.0,0.49785451]
[1757482294381,0.15,111790.0,111780.0,0.61326136]
[1757482295062,0.15,111790.0,111780.0,0.49785451]
[1757482298078,0.15,111790.0,111780.0,0.34797451]
[1757482298302,0.15,111790.0,111780.0,0.49785451]
[1757482301177,0.33406687,111790.0,111780.0,0.49486451]
[1757482301382,0.15516,111790.0,111780.0,0.49486451]
[1757482303606,0.15202,111790.0,111780.0,0.49486451]
[1757482303815,0.15202,111790.0,111780.0,0.49788451]
[1757482305757,0.44947372,111790.0,111780.0,0.34283451]
[1757482305918,0.47238372,111790.0,111780.0,0.34283451]
[1757482306344,0.44947372,111790.0,111780.0,0.34283451]
[1757482309706,0.47238372,111790.0,111780.0,0.31770793]
[1757482311618,0.44947372,111790.0,111780.0,0.31984793]
[1757482311814,0.44633372,111790.0,111780.0,0.31984793]
[1757482313986,0.44947372,111790.0,111780.0,0.31984793]
[1757482314904,0.33406687,111790.0,111780.0,0.31984793]
[1757482315311,0.44947372,111790.0,111780.0,0.31984793]
[1757482319680,0.27056685,111790.0,111780.0,0.31984793]
[1757482320060,0.30186,111790.0,111780.0,0.31984793]
[1757482320267,0.30186,111790.0,111780.0,0.32286793]
[1757482320481,0.15202,111790.0,111780.0,0.32286793]
[1757482320693,0.29984,111790.0,111780.0,0.32286793]
[1757482321524,0.29984,111790.0,111780.0,0.43827478]
[1757482321901,0.29984,111790.0,111780.0,0.32286793]
[1757482324815,0.15,111790.0,111780.0,0.43827478]
[1757482325254,0.15527,111790.0,111780.0,0.46968793]
[1757482327373,0.15527,111790.0,111780.0,0.46964793]
[1757482329030,0.15,111790.0,111780.0,0.47266793]
[1757482330552,0.78410172,111800.0,111790.0,0.17890687]
[1757482330761,0.78623172,111800.0,111790.0,0.17890687]
[1757482330930,0.78937172,111800.0,111790.0,0.17890687]
[1757482332547,0.17890687,111790.0,111780.0,0.46750793]
[1757482332780,0.00299,111790.0,111780.0,0.46750793]
[1757482332980,0.00509,111790.0,111780.0,0.46750793]
[1757482333212,0.00509,111790.0,111780.0,0.31770793]
[1757482333427,0.29940372,111790.0,111780.0,0.31770793]
[1757482333643,0.47355372,111790.0,111780.0,0.31770793]
[1757482334268,0.29464685,111790.0,111780.0,0.31770793]
[1757482335510,0.29464685,111790.0,111780.0,0.31982793]
[1757482335713,0.29464685,111790.0,111780.0,0.31770793]
[1757482336554,0.29464685,111790.0,111780.0,0.27083887]
[1757482338564,0.35238421,111790.0,111780.0,0.27083887]
[1757482340226,0.53129108,111790.0,111780.0,0.27083887]
[1757482342585,0.73129108,111790.0,111770.0,0.52162634]
[1757482342830,0.73129108,111790.0,111770.0,0.76330233]
[1757482343038,0.73129108,111790.0,111770.0,0.76642233]
[1757482343239,0.73129108,111790.0,111770.0,0.85833832]
[1757482343866,0.73129108,111790.0,111770.0,1.03148253]
[1757482344081,0.73129108,111790.0,111780.0,0.17892288]
[1757482344274,0.70714108,111790.0,111780.0,0.18104288]
[1757482344485,0.85690108,111790.0,111780.0,0.18104288]
[1757482344745,0.85690108,111790.0,111780.0,0.21633713]
[1757482345499,0.70714108,111790.0,111780.0,0.21633713]
[1757482345726,0.85690108,111790.0,111780.0,0.18104288]
[1757482347653,0.88105108,111790.0,111770.0,0.34404233]
[1757482347857,0.17314421,111780.0,111770.0,0.49380233]
[1757482348079,0.70790687,111790.0,111770.0,0.49380233]
[1757482348302,0.17314421,111780.0,111770.0,0.49380233]
[1757482348524,0.17314421,111780.0,111770.0,0.58571832]
[1757482348766,0.17823421,111780.0,111770.0,0.58783832]
[1757482349694,0.17524421,111780.0,111770.0,0.58783832]
[1757482349905,0.87895108,111790.0,111780.0,0.17892288]
[1757482350130,0.88105108,111790.0,111780.0,0.17892288]
[1757482355050,0.90794435,111790.0,111780.0,0.17892288]
[1757482355919,0.73480014,111790.0,111780.0,0.17892288]
[1757482356151,0.90794435,111790.0,111780.0,0.17892288]
[1757482359002,0.75818435,111790.0,111780.0,0.17892288]
[1757482359201,0.88375435,111790.0,111770.0,0.76198253]
[1757482359410,0.88375435,111790.0,111780.0,0.17892288]
[1757482360647,0.88375435,111790.0,111780.0,0.18104288]
[1757482361233,0.88375435,111790.0,111780.0,0.17892288]
[1757482369927,0.88375435,111790.0,111770.0,0.76198253]
[1757482370090,0.17314421,111780.0,111770.0,0.58883832]
[1757482370549,0.17314421,111780.0,111770.0,0.59096832]
[1757482370758,0.73556277,111780.0,111770.0,0.06424051]
[1757482370905,0.73556277,111780.0,111760.0,0.68754033]
[1757482371283,0.32286421,111770.0,111760.0,0.48482974]
[1757482371488,0.32489421,111770.0,111760.0,0.42271923]
[1757482371614,0.32489421,111770.0,111760.0,0.51463522]
[1757482371825,0.5038331,111770.0,111760.0,0.51463522]
[1757482372234,0.3541131,111770.0,111760.0,0.33568198]
[1757482372429,0.5073031,111770.0,111760.0,0.33355198]
[1757482372633,0.5073031,111770.0,111760.0,0.24264229]
[1757482373034,0.5073031,111770.0,111760.0,0.42159719]
[1757482373230,0.32836421,111770.0,111760.0,0.42372719]
[1757482373461,0.32314421,111770.0,111760.0,0.42679719]
[1757482373669,0.32314421,111770.0,111760.0,0.5999414]
[1757482373670,0.15,111770.0,111760.0,0.5999414]
[1757482373851,0.15,111770.0,111760.0,0.69185739]
[1757482374282,0.15,111770.0,111760.0,0.69285739]
[1757482377935,0.32893889,111770.0,111760.0,0.51971318]
[1757482378632,0.32893889,111770.0,111760.0,0.37003318]
[1757482378859,0.32893889,111770.0,111760.0,0.51971318]
[1757482379603,0.15,111770.0,111760.0,0.69285739]
[1757482380454,0.15,111770.0,111760.0,0.71620739]
[1757482381077,0.15,111770.0,111760.0,0.69285739]
[1757482382476,0.32893889,111770.0,111760.0,0.54317739]
[1757482382678,0.5020831,111770.0,111760.0,0.51971318]
[1757482382885,0.5073031,111770.0,111760.0,0.51451318]
[1757482385032,0.5073031,111770.0,111760.0,0.18587828]
[1757482385261,0.5321831,111770.0,111760.0,0.33555828]
[1757482385688,0.5321831,111770.0,111760.0,0.51451318]
[1757482386092,0.5073031,111770.0,111760.0,0.51451318]
[1757482388986,0.5073031,111770.0,111760.0,0.51664318]
[1757482391169,0.51650343,111770.0,111760.0,0.51664318]
[1757482393003,0.51650343,111770.0,111760.0,0.33764828]
[1757482393412,0.51650343,111770.0,111760.0,0.51660318]
[1757482395711,0.15522,111770.0,111760.0,0.51660318]
[1757482395924,0.15,111770.0,111760.0,0.69273739]
[1757482397983,0.02689531,111780.0,111770.0,0.17893889]
[1757482398187,0.68749221,111790.0,111770.0,0.48649007]
[1757482398402,0.69632977,111790.0,111770.0,0.42653365]
[1757482398619,0.66211429,111790.0,111780.0,0.17892288]
[1757482398827,0.72518372,111790.0,111780.0,0.18089288]
[1757482399335,0.72518372,111790.0,111780.0,0.00197]
[1757482400951,0.72913372,111790.0,111780.0,0.00197]
[1757482401181,0.72913372,111790.0,111770.0,0.42456365]
[1757482401182,0.17892288,111780.0,111770.0,0.30913913]
[1757482401425,0.17892288,111780.0,111770.0,0.30614913]
[1757482401695,0.3231574,111780.0,111770.0,0.09191599]
[1757482401924,0.3231574,111780.0,111760.0,0.42695603]
[1757482402134,0.35357672,111780.0,111760.0,0.51887202]
[1757482402342,0.37752197,111780.0,111760.0,0.51887202]
[1757482402550,0.38047197,111780.0,111770.0,0.001]
[1757482402933,0.38047197,111780.0,111760.0,0.52186202]
[1757482403343,0.38047197,111780.0,111760.0,0.61477801]
[1757482403707,0.35005265,111780.0,111770.0,0.17893889]
[1757482403915,0.35005265,111780.0,111770.0,0.18090889]
[1757482404987,0.35005265,111780.0,111770.0,0.18190889]
[1757482405893,0.35005265,111780.0,111770.0,0.18290889]
[1757482407387,0.35005265,111780.0,111770.0,0.21820314]
[1757482407789,0.35005265,111780.0,111770.0,0.18290889]
[1757482410909,0.3231574,111780.0,111770.0,0.18290889]
[1757482412753,0.3231574,111780.0,111770.0,0.18093889]
[1757482413988,0.3231574,111780.0,111770.0,0.002]
[1757482414537,0.43858192,111780.0,111770.0,0.002]
[1757482415201,0.46900124,111780.0,111770.0,0.002]
[1757482415585,0.46900124,111780.0,111770.0,0.001]
[1757482416065,0.4958965,111780.0,111770.0,0.001]
[1757482416270,0.17893889,111770.0,111760.0,0.45459151]
[1757482416473,0.44592341,111770.0,111760.0,0.3969075]
[1757482416683,0.44887341,111770.0,111760.0,0.3969075]
[1757482417893,0.44887341,111770.0,111760.0,0.3979075]
[1757482418296,0.44887341,111770.0,111760.0,0.18487828]
[1757482418454,0.59887341,111770.0,111760.0,0.09296229]
[1757482418665,0.62277341,111770.0,111760.0,0.09296229]
[1757482419119,0.62277341,111770.0,111760.0,0.0010463]
[1757482419321,1.30861725,111770.0,111760.0,0.0010463]
[1757482419683,1.33551636,111770.0,111760.0,0.0010463]
[1757482420103,1.53551636,111770.0,111760.0,0.0010463]
[1757482421321,1.53551636,111770.0,111760.0,4.63e-05]
[1757482421532,1.53651636,111770.0,111760.0,4.63e-05]
[1757482422108,1.53751636,111770.0,111760.0,4.63e-05]
[1757482423208,1.72134834,111770.0,111760.0,4.63e-05]
[1757482423415,1.62939235,111770.0,111760.0,4.63e-05]
[1757482424826,1.47983235,111770.0,111760.0,4.63e-05]
[1757482425026,1.62939235,111770.0,111760.0,4.63e-05]
[1757482427048,2.05851827,111770.0,111760.0,4.63e-05]
[1757482427263,2.07255223,111770.0,111760.0,4.63e-05]
[1757482427491,2.16446822,111770.0,111760.0,4.63e-05]
[1757482428918,2.15043426,111770.0,111760.0,4.63e-05]
[1757482432026,2.16446893,111770.0,111760.0,4.63e-05]
[1757482434671,2.01490893,111770.0,111760.0,4.63e-05]
[1757482434876,2.04904441,111770.0,111760.0,4.63e-05]
[1757482435302,2.06576461,111770.0,111760.0,4.63e-05]
[1757482437226,2.06576461,111770.0,111760.0,0.0051263]
[1757482437227,1.69227026,111770.0,111760.0,0.0051263]
[1757482437441,1.59101458,111770.0,111760.0,0.0051263]
[1757482437650,1.7084491,111770.0,111760.0,0.0020163]